Cogmind - Beta 12 @@@ ROGUE MODE // 2023.06.13 @ 16:34:07 Player: Smie Result: Destroyed by P-80 Master with Gamma Rifle Performance ------------- Evolutions (7) 3500 Regions Visited (24) 4800 Robots Destroyed (10) 50 Value Destroyed (280) 280 Prototype IDs (25) 500 Alien Tech Used (8) 1600 Bonus (1100) 1100 TOTAL SCORE: 11830 Bonus ------- Entered DSFs 500 Met Data Miner 300 Met Zhirov 300 Cogmind --------- Core Integrity 0/1300 Matter 165/425 Energy 98/100 System Corruption 16% Temperature Cool (4) Movement Flying (39) Location -3/Section 7 Parts ------- > --- POWER (2) -------- (None) > --- PROPULSION (6) --- Impulse Thruster Impulse Thruster Array > --- UTILITY (11) ----- Visual Processing Unit > --- WEAPON (2) ------- (None) > --- INVENTORY (5) ---- Matter Drive Advanced Power Amplifier Improved Phase Shifter Subatomic Replicator Peak State ------------ > --- POWER ------------ Matter Drive > --- PROPULSION ------- Nuclear Pulse Array Field Propulsion Array Improved Diametric Drive Improved Diametric Drive > --- UTILITY ---------- Small Storage Unit Structural Scanner Visual Processing Unit Improved Sensor Array Improved Signal Interpreter Improved Melee Analysis Suite Improved Reaction Control System Improved Utility Shielding Makeshift Hacking Suite Improved Hacking Suite Advanced Hacking Suite > --- WEAPON ----------- Power Maul > --- INVENTORY -------- Micro Antimatter Reactor Improved Diametric Drive Improved Diametric Drive Advanced Power Amplifier Improved Phase Shifter Dimensional Node Initializer Transdimensional Reconstructor Subatomic Replicator [Rating: 121] Favorites ----------- Power Ion Engine Engine Ion Engine Power Core Enhanced Nuclear Core Reactor Heavy Antimatter Reactor Propulsion Xenon Bombardment Thruster Leg Aluminum Leg Wheel Wheel Flight Unit Xenon Bombardment Thruster Utility Small Storage Unit Device Structural Scanner Storage Small Storage Unit Processor Visual Processing Unit Hackware Improved Hacking Suite Protection Improved Light Armor Plating Weapon Power Maul Energy Gun Small Laser Ballistic Gun Assault Rifle Special Weapon Mining Laser Impact Weapon Power Maul Build | -11 -10 -10 -10 -9 -8 -8 -7 -7 -7 -7 -6 -6 -5 -5 -5 -5 -4 -4 -4 -4 -4 -3 -3 -3 ------- Run | Jun Mat Min Exi Min Mat Sto Fac Low Low Dat Pro Fac Fac Upp Upp Zhi Pro Fac Was Fac DSF Res Qua Sec Slots Evolved 14 | . . . . . 4 . 2 . . . . 2 2 . . . . 2 . . . 2 . . Power 1 | . . . . . . . . . . . . 1 . . . . . . . . . . . . Propulsion 4 | . . . . . 2 . . . . . . . 1 . . . . 1 . . . . . . Utility 9 | . . . . . 2 . 2 . . . . 1 1 . . . . 1 . . . 2 . . Weapon . | . . . . . . . . . . . . . . . . . . . . . . . . . Parts Attached 80 | 6 8 . . . 6 3 1 1 . . . 13 2 . 1 5 4 6 1 . 1 7 9 6 Power 12 | 1 1 . . . 1 . . . . . . 2 . . . 1 . . 1 . . 2 1 2 Engine 5 | 1 1 . . . 1 . . . . . . . . . . . . . . . . 2 . . Core 2 | . . . . . . . . . . . . 2 . . . . . . . . . . . . Reactor 5 | . . . . . . . . . . . . . . . . 1 . . 1 . . . 1 2 Propulsion 28 | 2 4 . . . 2 2 . . . . . 4 1 . . 2 . 2 . . . 1 4 4 Treads . | . . . . . . . . . . . . . . . . . . . . . . . . . Leg 2 | . 2 . . . . . . . . . . . . . . . . . . . . . . . Wheel 2 | 2 . . . . . . . . . . . . . . . . . . . . . . . . Hover . | . . . . . . . . . . . . . . . . . . . . . . . . . Flight 24 | . 2 . . . 2 2 . . . . . 4 1 . . 2 . 2 . . . 1 4 4 Utility 33 | 1 2 . . . 2 . 1 1 . . . 5 1 . 1 2 4 4 . . 1 4 4 . Device 18 | . 1 . . . 1 . . . . . . 3 . . . 1 4 3 . . 1 2 2 . Storage 2 | 1 1 . . . . . . . . . . . . . . . . . . . . . . . Processor 4 | . . . . . . . 1 1 . . . 1 . . . . . . . . . 1 . . Hackware 4 | . . . . . . . . . . . . . 1 . 1 1 . 1 . . . . . . Protection 5 | . . . . . 1 . . . . . . 1 . . . . . . . . . 1 2 . Artifact . | . . . . . . . . . . . . . . . . . . . . . . . . . Weapon 7 | 2 1 . . . 1 1 . . . . . 2 . . . . . . . . . . . . Energy Gun 4 | 1 1 . . . . 1 . . . . . 1 . . . . . . . . . . . . Energy Cannon . | . . . . . . . . . . . . . . . . . . . . . . . . . Ballistic Gun 1 | 1 . . . . . . . . . . . . . . . . . . . . . . . . Ballistic Cannon . | . . . . . . . . . . . . . . . . . . . . . . . . . Launcher . | . . . . . . . . . . . . . . . . . . . . . . . . . Special Weapon 1 | . . . . . 1 . . . . . . . . . . . . . . . . . . . Impact Weapon 1 | . . . . . . . . . . . . 1 . . . . . . . . . . . . Slashing Weapon . | . . . . . . . . . . . . . . . . . . . . . . . . . Piercing Weapon . | . . . . . . . . . . . . . . . . . . . . . . . . . Special Melee Weapon . | . . . . . . . . . . . . . . . . . . . . . . . . . Unidentified Prototypes 14 | . 1 . . . . 2 . . . . . 1 . . . 2 . . . . . . 4 4 Parts Lost 25 | . . 1 . . . . . . . . 1 . . 1 . . 1 1 1 . 1 . . 18 Power 3 | . . 1 . . . . . . . . . . . . . . . . . . . . . 2 Propulsion 9 | . . . . . . . . . . . . . . . . . 1 . 1 . 1 . . 6 Utility 11 | . . . . . . . . . . . . . . 1 . . . 1 . . . . . 9 Weapon 2 | . . . . . . . . . . . 1 . . . . . . . . . . . . 1 Highest Loss Streak 15 | . . 1 . . . . . . . . 1 . . 1 . . 1 1 2 . 1 . . 15 To Critical Strikes . | . . . . . . . . . . . . . . . . . . . . . . . . . Average Slot Usage (%) 84 | . 92 83 71 71 93 100 92 94 100 100 100 86 88 85 83 88 86 78 82 78 78 78 78 65 Engine 3 | . 14 12 . . 9 9 7 7 7 7 7 3 . . . . . . . . . 3 . . Core 1 | . . . . . . . . . . . . 3 5 5 5 2 . . . . . . . . Reactor 1 | . . . . . . . . . . . . . . . . 2 5 5 5 5 5 . 3 2 Leg 1 | . 17 . . . . . . . . . . . . . . . . . . . . . . . Flight 23 | . 6 28 28 28 36 36 30 30 30 30 30 26 29 29 29 29 27 21 24 21 21 18 16 16 Device 14 | . 10 14 14 14 18 18 15 15 15 15 15 16 17 17 17 15 11 14 15 15 15 14 14 10 Storage 6 | . 14 14 14 14 9 9 7 7 7 7 7 6 5 5 5 5 5 5 5 5 5 4 4 3 Processor 11 | . . . . . . . 7 9 15 15 15 18 17 14 11 11 11 10 10 10 10 13 14 13 Hackware 6 | . . . . . . . . . . . . . 5 5 6 13 17 15 15 15 15 14 14 10 Protection 2 | . . . . . 3 9 7 7 7 7 7 2 . . . . . . . . . 3 4 1 Energy Gun 4 | . 22 14 14 14 9 9 7 7 7 7 7 4 . . . . . . . . . . . . Special Weapon 1 | . . . . . 9 9 7 7 7 7 7 . . . . . . . . . . . . . Impact Weapon 2 | . . . . . . . . . . . . 3 5 5 5 5 5 5 5 5 5 4 4 3 Naked Turns . | . . . . . . . . . . . . . . . . . . . . . . . . . Heaviest Build 34 | 13 14 10 7 7 18 19 19 19 19 19 19 20 20 20 20 30 31 32 28 28 32 27 34 34 Greatest Support 42 | 26 26 10 10 10 19 20 20 20 20 20 20 22 28 28 28 29 32 38 38 33 33 33 42 42 Greatest Overweight (x) 1 | 1 1 . . . . . . . . . . . . . . 1 . . . . . . . . Average Overweight (x) . | . . . . . . . . . . . . . . . . . . . . . . . . . Largest Inventory Capacity 8 | 8 8 8 8 8 8 8 8 8 8 8 8 8 8 8 8 8 8 8 8 8 8 8 8 8 Average Capacity 7 | 7 8 8 8 8 8 8 8 8 8 8 8 8 8 8 8 8 8 8 8 8 8 8 8 7 Most Carried 8 | 7 8 8 8 8 7 8 8 8 8 8 8 8 8 8 8 8 8 8 7 8 8 7 8 8 Average Carried 7 | 4 7 8 8 8 3 5 7 8 8 8 8 7 6 7 8 7 7 7 7 7 8 5 7 7 Final Capacity 8 | 8 8 8 8 8 8 8 8 8 8 8 8 8 8 8 8 8 8 8 8 8 8 8 8 5 Final Carried 8 | 6 8 8 8 8 3 8 8 8 8 8 8 8 8 8 8 8 8 7 7 8 8 6 8 5 Class Distribution -------------------- 41% | Infiltrator-Sprinter 19% | Hacker-Scout 17% | Hacker-Sprinter 16% | Mutant 3% | Sprinter Dominant Class ---------------- Mutant | -10/Materials Mutant | -10/Mines Mutant | -10/Exiles Mutant | -9/Mines Mutant | -8/Materials Infiltrator-Sprinter | -8/Storage Infiltrator-Sprinter | -7/Factory Infiltrator-Sprinter | -7/Lower Caves Infiltrator-Sprinter | -7/Lower Caves Infiltrator-Sprinter | -7/Data Miner Infiltrator-Sprinter | -6/Proximity Caves Infiltrator-Sprinter | -6/Factory Infiltrator-Sprinter | -5/Factory Infiltrator-Sprinter | -5/Upper Caves Infiltrator-Sprinter | -5/Upper Caves Hacker-Sprinter | -5/Zhirov Hacker-Sprinter | -4/Proximity Caves Hacker-Sprinter | -4/Factory Hacker-Sprinter | -4/Waste Hacker-Sprinter | -4/Factory Hacker-Sprinter | -4/DSF Hacker-Scout | -3/Research Hacker-Scout | -3/Quarantine Hacker-Scout | -3/Section 7 Resources | -11 -10 -10 -10 -9 -8 -8 -7 -7 -7 -7 -6 -6 -5 -5 -5 -5 -4 -4 -4 -4 -4 -3 -3 -3 ----------- Run | Jun Mat Min Exi Min Mat Sto Fac Low Low Dat Pro Fac Fac Upp Upp Zhi Pro Fac Was Fac DSF Res Qua Sec Matter Collected 929 | 275 53 . 25 . . . . 31 68 . . . . 16 145 . 86 38 . . . 135 2 55 Remotely . | . . . . . . . . . . . . . . . . . . . . . . . . . Salvage Created 494 | 83 65 . . . . . . . . . . . . . . . 20 17 . . . 257 . 52 Parts 10 | 2 5 . . . . . . . . . . . . . . . 1 . . . . 2 . . Haulers Intercepted 2 | . 1 . . . . . . . . . . . . . . . . . . . . 1 . . Recyclers Shooed 1 | . 1 . . . . . . . . . . . . . . . . . . . . . . . Parts Field Recycled . | . . . . . . . . . . . . . . . . . . . . . . . . . Retrieved Matter . | . . . . . . . . . . . . . . . . . . . . . . . . . Parts Self-Destructed 5 | . . . . . . . . . . . 5 . . . . . . . . . . . . . Prevented 1 | . . . . . . . . . . . . . . . . . 1 . . . . . . . Kills | -11 -10 -10 -10 -9 -8 -8 -7 -7 -7 -7 -6 -6 -5 -5 -5 -5 -4 -4 -4 -4 -4 -3 -3 -3 ------- Run | Jun Mat Min Exi Min Mat Sto Fac Low Low Dat Pro Fac Fac Upp Upp Zhi Pro Fac Was Fac DSF Res Qua Sec Combat Hostiles Destroyed 1 | . . . . . . . . . . . . . . . . . 1 . . . . . . . Classes Destroyed 5 | 1 2 . . . . . . . . . . . . . . . 1 1 . . . . . . Hauler 2 | . 1 . . . . . . . . . . . . . . . . . . . . 1 . . Recycler 2 | 1 . . . . . . . . . . . . . . . . . . . . . 1 . . Operator 3 | . . . . . . . . . . . . . . . . . . 1 . . . . . 2 Watcher 2 | . 1 . . . . . . . . . . . . . . . . . . . . 1 . . Swarmer 1 | . . . . . . . . . . . . . . . . . 1 . . . . . . . Best Kill Streak 1 | 1 1 . . . . . . . . . . . . . . . 1 1 . . . 1 . 1 Combat Bots Only 1 | . . . . . . . . . . . . . . . . . 1 . . . . . . . Max Kills in Single Turn 1 | 1 1 . . . . . . . . . . . . . . . 1 1 . . . 1 . 1 Gunslinging . | . . . . . . . . . . . . . . . . . . . . . . . . . Exploded . | . . . . . . . . . . . . . . . . . . . . . . . . . Melee . | . . . . . . . . . . . . . . . . . . . . . . . . . Uniques/NPCs Destroyed . | . . . . . . . . . . . . . . . . . . . . . . . . . Combat | -11 -10 -10 -10 -9 -8 -8 -7 -7 -7 -7 -6 -6 -5 -5 -5 -5 -4 -4 -4 -4 -4 -3 -3 -3 -------- Run | Jun Mat Min Exi Min Mat Sto Fac Low Low Dat Pro Fac Fac Upp Upp Zhi Pro Fac Was Fac DSF Res Qua Sec Damage Taken 3904 | . 25 29 . . . 129 . 63 30 . 44 156 . 116 48 . 85 . 34 . 86 23 652 2384 Core 1395 | . . 12 . . . 18 . . . . 5 37 . 31 25 . 36 . 34 . 32 . 56 1109 Absorbed by Shields 31 | . . . . . . . . . . . . . . . . . . . . . 31 . . . Redirected to Shielding 106 | . . . . . . . . . . . . . . . . . . . . . . 15 63 28 Regen/Repaired (Parts) 126 | . . . . . . . . . . . . 114 . . . . . 12 . . . . . . Core Remaining (%) 95 | 100 . . . 95 . 96 . . . . 99 95 . . . . 90 . . . 94 . . . Volleys Fired 27 | 5 8 . . . 1 7 5 1 . . . . . . . . . . . . . . . . Largest 2 | 1 2 . . . 1 2 1 1 . . . . . . . . . . . . . . . . Hottest 140 | 20 90 . . . 40 140 100 100 . . . . . . . . . . . . . . . . Shots Fired 36 | 5 16 . . . 1 8 5 1 . . . . . . . . . . . . . . . . Gun 25 | 5 16 . . . 1 3 . . . . . . . . . . . . . . . . . . Cannon . | . . . . . . . . . . . . . . . . . . . . . . . . . Launcher . | . . . . . . . . . . . . . . . . . . . . . . . . . Special 11 | . . . . . . 5 5 1 . . . . . . . . . . . . . . . . Kinetic 6 | 5 1 . . . . . . . . . . . . . . . . . . . . . . . Thermal 30 | . 15 . . . 1 8 5 1 . . . . . . . . . . . . . . . . Explosive . | . . . . . . . . . . . . . . . . . . . . . . . . . Electromagnetic . | . . . . . . . . . . . . . . . . . . . . . . . . . Robot Hit Streak 4 | 3 4 . . . . 3 . . . . . . . . . . . . . . . . . . Robot Miss Streak 2 | 1 2 . . . 1 1 . . . . . . . . . . . . . . . . . . Penetration Max . | . . . . . . . . . . . . . . . . . . . . . . . . . Secondary Targets . | . . . . . . . . . . . . . . . . . . . . . . . . . Shots Hit Robots 22 | 4 8 . . . . 3 . . . . . . . . . . 1 1 . . . 3 . 2 Core Hits 7 | 2 4 . . . . 1 . . . . . . . . . . . . . . . . . . Critical Kills . | . . . . . . . . . . . . . . . . . . . . . . . . . Critical Parts Destroyed 1 | . . . . . . . . . . . . . . . . . . . . . . . . 1 Critical Strikes 1 | . . . . . . . . . . . . . . . . . . . . . . . . 1 Smash 1 | . . . . . . . . . . . . . . . . . . . . . . . . 1 Melee Attacks 72 | . . . . . . . . . . . . 15 1 16 1 . 3 6 . . . 9 9 12 Impact 72 | . . . . . . . . . . . . 15 1 16 1 . 3 6 . . . 9 9 12 Slashing . | . . . . . . . . . . . . . . . . . . . . . . . . . Piercing . | . . . . . . . . . . . . . . . . . . . . . . . . . Sneak Attacks 2 | . . . . . . . . . . . . . . . . . . . . . . 2 . . Combat Hostiles . | . . . . . . . . . . . . . . . . . . . . . . . . . Follow-up Attacks . | . . . . . . . . . . . . . . . . . . . . . . . . . Damage Inflicted 697 | 49 95 . . . . 48 . . . . . . . . . . 57 61 . . . 278 . 109 Guns 168 | 49 95 . . . . 24 . . . . . . . . . . . . . . . . . . Cannons . | . . . . . . . . . . . . . . . . . . . . . . . . . Explosions . | . . . . . . . . . . . . . . . . . . . . . . . . . Melee 505 | . . . . . . . . . . . . . . . . . 57 61 . . . 278 . 109 Ramming . | . . . . . . . . . . . . . . . . . . . . . . . . . Kinetic 49 | 49 . . . . . . . . . . . . . . . . . . . . . . . . Thermal 143 | . 95 . . . . 48 . . . . . . . . . . . . . . . . . . Explosive . | . . . . . . . . . . . . . . . . . . . . . . . . . Electromagnetic . | . . . . . . . . . . . . . . . . . . . . . . . . . Impact 505 | . . . . . . . . . . . . . . . . . 57 61 . . . 278 . 109 Slashing . | . . . . . . . . . . . . . . . . . . . . . . . . . Piercing . | . . . . . . . . . . . . . . . . . . . . . . . . . Highest Corruption 16 | . . . . . . . . . . . . 4 . 3 3 3 3 . . . . . 2 16 Average Corruption 4 | . . . . . . . . . . . . 3 . 3 3 3 3 . . . . . 1 6 Corruption Purged . | . . . . . . . . . . . . . . . . . . . . . . . . . Corruption Blocked . | . . . . . . . . . . . . . . . . . . . . . . . . . Effects 20 | . . . . . . . . . . . . 2 . 3 1 1 3 . . . . . 2 8 Message Errors 3 | . . . . . . . . . . . . 1 . 2 . . . . . . . . . . Matter Fused 7 | . . . . . . . . . . . . . . . . . 2 . . . . . 1 4 Heat Flow Errors 3 | . . . . . . . . . . . . 1 . . 1 . . . . . . . 1 . Energy Discharges 1 | . . . . . . . . . . . . . . . . . 1 . . . . . . . Data Loss (minor) 4 | . . . . . . . . . . . . . . 1 . 1 . . . . . . . 2 Data Loss (major) 1 | . . . . . . . . . . . . . . . . . . . . . . . . 1 Misdirections 1 | . . . . . . . . . . . . . . . . . . . . . . . . 1 Overload Shots . | . . . . . . . . . . . . . . . . . . . . . . . . . Overflow Damage 276 | . . . . . . . . . . . . . . . . . 7 51 . . . 154 . 64 Projectiles . | . . . . . . . . . . . . . . . . . . . . . . . . . Explosions . | . . . . . . . . . . . . . . . . . . . . . . . . . Melee 276 | . . . . . . . . . . . . . . . . . 7 51 . . . 154 . 64 Knockbacks 2 | . . . . . . . . . . . . . . . . . . 1 . . . 1 . . Impact 2 | . . . . . . . . . . . . . . . . . . 1 . . . 1 . . Kinetic . | . . . . . . . . . . . . . . . . . . . . . . . . . Secondary . | . . . . . . . . . . . . . . . . . . . . . . . . . Self-Inflicted Damage . | . . . . . . . . . . . . . . . . . . . . . . . . . Shots . | . . . . . . . . . . . . . . . . . . . . . . . . . Rammed . | . . . . . . . . . . . . . . . . . . . . . . . . . Targets Rammed . | . . . . . . . . . . . . . . . . . . . . . . . . . Kicked . | . . . . . . . . . . . . . . . . . . . . . . . . . Crushed . | . . . . . . . . . . . . . . . . . . . . . . . . . Highest Temperature 426 | . 120 . . . . 40 40 14 7 . . 207 . 8 102 . . . . . . . 426 15 Average Temperature 112 | . 47 . . . . 18 20 6 7 . . 102 . 6 59 . . . . . . . 197 8 Received Heat Transfer 400 | . 15 15 . . . 45 . 21 18 . 6 36 . 12 . . . . . . . . 60 172 Effects 5 | . . . . . . . . . . . . . . . . . . . . . . . 5 . Energy Bleed 3 | . . . . . . . . . . . . . . . . . . . . . . . 3 . Damage (minor) 2 | . . . . . . . . . . . . . . . . . . . . . . . 2 . Siege Activations . | . . . . . . . . . . . . . . . . . . . . . . . . . Robots Corrupted . | . . . . . . . . . . . . . . . . . . . . . . . . . Combat Hostiles . | . . . . . . . . . . . . . . . . . . . . . . . . . Parts Fried 13 | . . . . . . . . . . . . . . . . . . 2 . . . 5 . 6 Impact Corruptions 12 | . . . . . . . . . . . . . . . . . 1 3 . . . 4 . 4 Robots Melted . | . . . . . . . . . . . . . . . . . . . . . . . . . Combat Hostiles . | . . . . . . . . . . . . . . . . . . . . . . . . . Parts Melted 1 | . 1 . . . . . . . . . . . . . . . . . . . . . . . Heat Transferred 360 | . 260 . . . . 100 . . . . . . . . . . . . . . . . . . Parts Sabotaged . | . . . . . . . . . . . . . . . . . . . . . . . . . Parts Stolen . | . . . . . . . . . . . . . . . . . . . . . . . . . Parts Stripped . | . . . . . . . . . . . . . . . . . . . . . . . . . Power Chain Reactions . | . . . . . . . . . . . . . . . . . . . . . . . . . Missiles Intercepted . | . . . . . . . . . . . . . . . . . . . . . . . . . Alert | -11 -10 -10 -10 -9 -8 -8 -7 -7 -7 -7 -6 -6 -5 -5 -5 -5 -4 -4 -4 -4 -4 -3 -3 -3 ------- Run | Jun Mat Min Exi Min Mat Sto Fac Low Low Dat Pro Fac Fac Upp Upp Zhi Pro Fac Was Fac DSF Res Qua Sec Peak Influence 447 | 5 92 95 . . 15 215 163 . . . . 206 102 . . . . 228 113 79 85 144 246 447 Initial 106 | . 3 35 . . . 5 97 . . . . 15 100 . . . . 69 78 79 65 47 81 106 Average 117 | 1 26 63 . . 4 96 134 . . . . 90 101 . . . . 158 89 79 73 82 148 270 Maximum Alert Level 2 | . . . . . . 1 . . . . . 1 . . . . . 1 . . . . 1 2 Low Security (%) 84 | 100 100 100 . 100 100 87 100 . . . . 98 100 . . . . 90 100 100 100 100 82 23 Level 1 14 | . . . . . . 12 . . . . . 1 . . . . . 9 . . . . 17 71 Level 2 . | . . . . . . . . . . . . . . . . . . . . . . . . 5 Level 3 . | . . . . . . . . . . . . . . . . . . . . . . . . . Level 4 . | . . . . . . . . . . . . . . . . . . . . . . . . . Level 5 . | . . . . . . . . . . . . . . . . . . . . . . . . . High Security . | . . . . . . . . . . . . . . . . . . . . . . . . . Max Security . | . . . . . . . . . . . . . . . . . . . . . . . . . Squads Dispatched 17 | . 1 . . . . . 1 . . . . 1 . . 1 . . 4 . . 2 1 1 5 Investigation 6 | . . . . . . . . . . . . 1 . . . . . 3 . . . 1 . 1 Extermination 1 | . . . . . . . . . . . . . . . . . . . . . . . . 1 Reinforcement 9 | . 1 . . . . . 1 . . . . . . . . . . 1 . . 2 . 1 3 Assault 1 | . . . . . . . . . . . . . . . 1 . . . . . . . . . Garrison . | . . . . . . . . . . . . . . . . . . . . . . . . . Intercept . | . . . . . . . . . . . . . . . . . . . . . . . . . Searches Triggered . | . . . . . . . . . . . . . . . . . . . . . . . . . Data Miner Redirects 2 | . . . . . . . . . . . . . . . . . . 1 . . . . . 1 Construction Impeded . | . . . . . . . . . . . . . . . . . . . . . . . . . Haulers Reinforced . | . . . . . . . . . . . . . . . . . . . . . . . . . Active Scanning Responses . | . . . . . . . . . . . . . . . . . . . . . . . . . Cargo Convoy Interrupts . | . . . . . . . . . . . . . . . . . . . . . . . . . Stealth | -11 -10 -10 -10 -9 -8 -8 -7 -7 -7 -7 -6 -6 -5 -5 -5 -5 -4 -4 -4 -4 -4 -3 -3 -3 --------- Run | Jun Mat Min Exi Min Mat Sto Fac Low Low Dat Pro Fac Fac Upp Upp Zhi Pro Fac Was Fac DSF Res Qua Sec Distress Signals 6 | . 1 . . . . . . . . . . . . . . . . 2 . . . . 2 1 Communications Jammed . | . . . . . . . . . . . . . . . . . . . . . . . . . Distress Signals . | . . . . . . . . . . . . . . . . . . . . . . . . . Times Spotted 148 | . 7 6 . . 1 11 2 3 4 . 6 7 . 1 8 . 7 5 5 . 5 4 18 48 Peak Tracking Total 20 | . 3 2 . . 1 6 2 3 4 . 4 4 . 1 8 . 7 6 5 . 3 3 9 20 Tactical Retreats 32 | . 1 2 . . . 3 . . 3 . 1 2 . 1 1 . 2 1 . . 2 1 6 6 Traps | -11 -10 -10 -10 -9 -8 -8 -7 -7 -7 -7 -6 -6 -5 -5 -5 -5 -4 -4 -4 -4 -4 -3 -3 -3 ------- Run | Jun Mat Min Exi Min Mat Sto Fac Low Low Dat Pro Fac Fac Upp Upp Zhi Pro Fac Was Fac DSF Res Qua Sec Traps Triggered 9 | . . . . . . . . . . . . 2 . . . . . 1 . . 4 1 1 . Indirectly . | . . . . . . . . . . . . . . . . . . . . . . . . . Trap Hack Attempts . | . . . . . . . . . . . . . . . . . . . . . . . . . Triggered . | . . . . . . . . . . . . . . . . . . . . . . . . . Disarmed . | . . . . . . . . . . . . . . . . . . . . . . . . . Reprogrammed . | . . . . . . . . . . . . . . . . . . . . . . . . . Reused . | . . . . . . . . . . . . . . . . . . . . . . . . . Traps Extracted . | . . . . . . . . . . . . . . . . . . . . . . . . . Installed . | . . . . . . . . . . . . . . . . . . . . . . . . . Triggered 3 | . . . . . . . . . . . 3 . . . . . . . . . . . . . Machines | -11 -10 -10 -10 -9 -8 -8 -7 -7 -7 -7 -6 -6 -5 -5 -5 -5 -4 -4 -4 -4 -4 -3 -3 -3 ---------- Run | Jun Mat Min Exi Min Mat Sto Fac Low Low Dat Pro Fac Fac Upp Upp Zhi Pro Fac Was Fac DSF Res Qua Sec Machines Disabled 10 | . . . . . . 1 . . . . . . . 1 . . . . . . . 1 5 2 Max in Single Turn 1 | . . . . . . 1 . . . . . . . 1 . . . . . . . 1 1 1 Garrison Access 3 | . . . . . . . . . . . . . . . . . . . . . . 1 1 1 Machines Repaired . | . . . . . . . . . . . . . . . . . . . . . . . . . Machines Sabotaged . | . . . . . . . . . . . . . . . . . . . . . . . . . Overloaded Fab Kills . | . . . . . . . . . . . . . . . . . . . . . . . . . Hacking | -11 -10 -10 -10 -9 -8 -8 -7 -7 -7 -7 -6 -6 -5 -5 -5 -5 -4 -4 -4 -4 -4 -3 -3 -3 --------- Run | Jun Mat Min Exi Min Mat Sto Fac Low Low Dat Pro Fac Fac Upp Upp Zhi Pro Fac Was Fac DSF Res Qua Sec Machines Accessed 59 | . 1 . 1 . . 7 2 . . 4 . 8 2 1 . 9 . 6 . 1 . 1 7 9 Terminals 33 | . 1 . . . . 7 2 . . . . 5 . . . . . 4 . 1 . . 6 7 Fabricators 3 | . . . . . . . . . . . . 1 1 . . . . 1 . . . . . . Repair Stations 3 | . . . . . . . . . . . . 1 . . . . . 1 . . . . . 1 Recycling Units 1 | . . . . . . . . . . . . . 1 . . . . . . . . . . . Scanalyzers . | . . . . . . . . . . . . . . . . . . . . . . . . . Garrison Access 4 | . . . . . . . . . . . . 1 . . . . . . . . . 1 1 1 Total Hacks 170 | . 2 . 4 . . 14 3 . . 29 . 17 4 1 . 48 . 20 . 1 . 1 11 15 Successful 134 | . . . 4 . . 8 2 . . 29 . 6 2 1 . 48 . 15 . 1 . 1 9 8 Failed 36 | . 2 . . . . 6 1 . . . . 11 2 . . . . 5 . . . . 2 7 Catastrophic 3 | . . . . . . 1 . . . . . 2 . . . . . . . . . . . . Database Lockouts . | . . . . . . . . . . . . . . . . . . . . . . . . . Manual 22 | . . . . . . 6 . . . . . 3 . . . . . 8 . . . . 2 3 Terminals 64 | . 2 . . . . 14 3 . . . . 9 . . . . . 14 . 1 . . 10 11 Fabricators 5 | . . . . . . . . . . . . 1 1 . . . . 3 . . . . . . Repair Stations 10 | . . . . . . . . . . . . 5 . . . . . 3 . . . . . 2 Recycling Units 3 | . . . . . . . . . . . . . 3 . . . . . . . . . . . Scanalyzers . | . . . . . . . . . . . . . . . . . . . . . . . . . Garrison Access 6 | . . . . . . . . . . . . 2 . . . . . . . . . 1 1 2 Terminal Hacks 116 | . . . 4 . . 7 2 . . 29 . 3 . 1 . 48 . 7 . 1 . . 8 6 Record 55 | . . . 4 . . . . . . 11 . 1 . 1 . 36 . . . . . . 2 . Part Schematic 15 | . . . . . . . . . . 11 . . . . . 4 . . . . . . . . Robot Schematic 4 | . . . . . . . . . . 4 . . . . . . . . . . . . . . Robot Analysis 4 | . . . . . . . . . . . . . . . . 4 . . . . . . . . Prototype ID Bank 8 | . . . . . . 1 . . . 3 . . . . . 4 . . . . . . . . Open Door 6 | . . . . . . 2 . . . . . . . . . . . . . . . . . 4 Open DSF 1 | . . . . . . . . . . . . . . . . . . . . 1 . . . . Branch Access Points 2 | . . . . . . . 1 . . . . . . . . . . 1 . . . . . . Machine Index 1 | . . . . . . . . . . . . . . . . . . . . . . . 1 . Terminal Index 2 | . . . . . . . . . . . . . . . . . . 1 . . . . . 1 Fabricator Index 1 | . . . . . . . . . . . . . . . . . . 1 . . . . . . Unreport Threat 2 | . . . . . . . . . . . . . . . . . . . . . . . 2 . Locate Traps 1 | . . . . . . 1 . . . . . . . . . . . . . . . . . . Surveillance Status 1 | . . . . . . . . . . . . 1 . . . . . . . . . . . . Recall Reinforcements 1 | . . . . . . . . . . . . . . . . . . . . . . . . 1 Hauler Manifests 1 | . . . . . . . . . . . . 1 . . . . . . . . . . . . Registered Components 2 | . . . . . . . . . . . . . . . . . . 2 . . . . . . Registered Prototypes 1 | . . . . . . . . . . . . . . . . . . . . . . . 1 . Zone Layout 8 | . . . . . . 3 1 . . . . . . . . . . 2 . . . . 2 . Fabricator Hacks 5 | . . . . . . . . . . . . 1 1 . . . . 3 . . . . . . Network Status 1 | . . . . . . . . . . . . . . . . . . 1 . . . . . . Load Schematic 1 | . . . . . . . . . . . . . . . . . . 1 . . . . . . Build 3 | . . . . . . . . . . . . 1 1 . . . . 1 . . . . . . Repair Station Hacks 5 | . . . . . . . . . . . . 2 . . . . . 2 . . . . . 1 Scan Component 3 | . . . . . . . . . . . . 1 . . . . . 1 . . . . . 1 Repair 2 | . . . . . . . . . . . . 1 . . . . . 1 . . . . . . Recycling Unit Hacks 1 | . . . . . . . . . . . . . 1 . . . . . . . . . . . Retrieve Matter 1 | . . . . . . . . . . . . . 1 . . . . . . . . . . . Scanalyzer . | . . . . . . . . . . . . . . . . . . . . . . . . . Garrison Access Hacks 3 | . . . . . . . . . . . . . . . . . . . . . . 1 1 1 Seal Access 3 | . . . . . . . . . . . . . . . . . . . . . . 1 1 1 Unauthorized Hacks 4 | . . . . . . 1 . . . . . . . . . . . 3 . . . . . . Terminals 4 | . . . . . . 1 . . . . . . . . . . . 3 . . . . . . Assimilate 2 | . . . . . . 1 . . . . . . . . . . . 1 . . . . . . Botnet 2 | . . . . . . . . . . . . . . . . . . 2 . . . . . . Fabricators . | . . . . . . . . . . . . . . . . . . . . . . . . . Repair Stations . | . . . . . . . . . . . . . . . . . . . . . . . . . Recycling Units . | . . . . . . . . . . . . . . . . . . . . . . . . . Scanalyzers . | . . . . . . . . . . . . . . . . . . . . . . . . . Garrison Access . | . . . . . . . . . . . . . . . . . . . . . . . . . Data Cores Recovered 3 | . . . . . . . . . . . . . . . . . . 1 . . . . . 2 Used 2 | . . . . . . . . . . . . . . . . . . 1 . . . . . 1 Hacking Detections 35 | . 1 . . . . 6 2 . . . . 6 1 . . . . 6 . . . . 5 8 Full Trace Events 5 | . . . . . . . . . . . . 1 . . . . . 3 . . . . . 1 Feedback Events 2 | . . . . . . . . . . . . 1 . . . . . 1 . . . . . . Corruption 1 | . . . . . . . . . . . . 1 . . . . . . . . . . . . Hackware Fried 1 | . . . . . . . . . . . . . . . . . . 1 . . . . . . Feedback Blocked . | . . . . . . . . . . . . . . . . . . . . . . . . . Robot Schematics Acquired 4 | . . . . . . . . . . 4 . . . . . . . . . . . . . . Robots Built 1 | . . . . . . . . . . . . 1 . . . . . . . . . . . . Authchips . | . . . . . . . . . . . . . . . . . . . . . . . . . Time 40 | . . . . . . . . . . . . 40 . . . . . . . . . . . . Total Robot Build Rating 1 | . . . . . . . . . . . . 1 . . . . . . . . . . . . Part Schematics Acquired 15 | . . . . . . . . . . 11 . . . . . 4 . . . . . . . . Parts Built 2 | . . . . . . . . . . . . . 1 . . . . 1 . . . . . . Authchips . | . . . . . . . . . . . . . . . . . . . . . . . . . Time 193 | . . . . . . . . . . . . . 117 . . . . 76 . . . . . . Total Part Build Rating 12 | . . . . . . . . . . . . . 7 . . . . 5 . . . . . . Parts Repaired 2 | . . . . . . . . . . . . 1 . . . . . 1 . . . . . . Time 33 | . . . . . . . . . . . . 19 . . . . . 14 . . . . . . Parts Recycled . | . . . . . . . . . . . . . . . . . . . . . . . . . Recycled Matter . | . . . . . . . . . . . . . . . . . . . . . . . . . Retrieved Matter . | . . . . . . . . . . . . . . . . . . . . . . . . . Retrieved Components . | . . . . . . . . . . . . . . . . . . . . . . . . . Parts Scanalyzed . | . . . . . . . . . . . . . . . . . . . . . . . . . Part Schematics Acquired . | . . . . . . . . . . . . . . . . . . . . . . . . . Parts Damaged . | . . . . . . . . . . . . . . . . . . . . . . . . . Bothacking | -11 -10 -10 -10 -9 -8 -8 -7 -7 -7 -7 -6 -6 -5 -5 -5 -5 -4 -4 -4 -4 -4 -3 -3 -3 ------------ Run | Jun Mat Min Exi Min Mat Sto Fac Low Low Dat Pro Fac Fac Upp Upp Zhi Pro Fac Was Fac DSF Res Qua Sec Used RIF Installer . | . . . . . . . . . . . . . . . . . . . . . . . . . Robots Hacked . | . . . . . . . . . . . . . . . . . . . . . . . . . Non-combat . | . . . . . . . . . . . . . . . . . . . . . . . . . Combat . | . . . . . . . . . . . . . . . . . . . . . . . . . Robot Hacks Applied . | . . . . . . . . . . . . . . . . . . . . . . . . . Relay Couplers Released . | . . . . . . . . . . . . . . . . . . . . . . . . . Fabnet Peak Effective % . | . . . . . . . . . . . . . . . . . . . . . . . . . Robots Rewired . | . . . . . . . . . . . . . . . . . . . . . . . . . Allies Hacked . | . . . . . . . . . . . . . . . . . . . . . . . . . Hacks Repelled . | . . . . . . . . . . . . . . . . . . . . . . . . . Allies | -11 -10 -10 -10 -9 -8 -8 -7 -7 -7 -7 -6 -6 -5 -5 -5 -5 -4 -4 -4 -4 -4 -3 -3 -3 -------- Run | Jun Mat Min Exi Min Mat Sto Fac Low Low Dat Pro Fac Fac Upp Upp Zhi Pro Fac Was Fac DSF Res Qua Sec Total Allies 3 | . . . . . . 1 . . . . 1 1 . . . . . . . . . . . . Largest Group 1 | . . . . . . 1 . . . . 1 1 . . . . . . . . . . . . Highest-Rated Group 96 | . . . . . . 10 . . . . 96 6 . . . . . . . . . . . . Highest-Rated Ally 96 | . . . . . . 10 . . . . 96 6 . . . . . . . . . . . . Total Orders . | . . . . . . . . . . . . . . . . . . . . . . . . . Ally Attacks 7 | . . . . . . . . . . . 7 . . . . . . . . . . . . . Total Damage 226 | . . . . . . . . . . . 226 . . . . . . . . . . . . . Kills 1 | . . . . . . . . . . . 1 . . . . . . . . . . . . . Allies Corrupted . | . . . . . . . . . . . . . . . . . . . . . . . . . Allies Melted . | . . . . . . . . . . . . . . . . . . . . . . . . . Intel | -11 -10 -10 -10 -9 -8 -8 -7 -7 -7 -7 -6 -6 -5 -5 -5 -5 -4 -4 -4 -4 -4 -3 -3 -3 ------- Run | Jun Mat Min Exi Min Mat Sto Fac Low Low Dat Pro Fac Fac Upp Upp Zhi Pro Fac Was Fac DSF Res Qua Sec Robot Analysis Total 4 | . . . . . . . . . . . . . . . . 4 . . . . . . . . Derelict Logs Recovered 9 | . . . . 2 . . . 2 2 . 2 . . . 1 . . . . . . . . . Drone Launches . | . . . . . . . . . . . . . . . . . . . . . . . . . Drone Recoveries . | . . . . . . . . . . . . . . . . . . . . . . . . . Exploration | -11 -10 -10 -10 -9 -8 -8 -7 -7 -7 -7 -6 -6 -5 -5 -5 -5 -4 -4 -4 -4 -4 -3 -3 -3 ------------- Run | Jun Mat Min Exi Min Mat Sto Fac Low Low Dat Pro Fac Fac Upp Upp Zhi Pro Fac Was Fac DSF Res Qua Sec Turns Passed 3655 | 65 293 126 52 18 30 123 69 129 136 23 93 362 155 300 164 58 248 193 25 26 90 228 279 370 Spaces Moved 7132 | 47 227 306 140 33 26 274 143 370 351 79 209 604 113 526 383 156 384 285 79 87 83 534 602 1091 Core 17 | 7 . . . . . . . . . . . . . . . . . . . . . . . 10 Treads . | . . . . . . . . . . . . . . . . . . . . . . . . . Legs 120 | . 120 . . . . . . . . . . . . . . . . . . . . . . . Wheels 83 | 40 43 . . . . . . . . . . . . . . . . . . . . . . . Hover . | . . . . . . . . . . . . . . . . . . . . . . . . . Flight 6912 | . 64 306 140 33 26 274 143 370 351 79 209 604 113 526 383 156 384 285 79 87 83 534 602 1081 Fastest Speed 21 | 50 37 37 37 37 31 29 29 29 29 29 29 28 26 26 26 26 27 26 26 29 29 29 26 21 Average Speed 30 | 85 91 37 37 37 31 30 29 29 29 29 29 28 26 26 26 28 27 27 26 29 29 29 29 25 Slowest Speed 190 | 100 190 37 37 37 31 31 29 29 29 29 29 29 26 26 26 105 29 29 29 29 32 32 34 50 Overloaded Moves . | . . . . . . . . . . . . . . . . . . . . . . . . . Propulsion Burnouts . | . . . . . . . . . . . . . . . . . . . . . . . . . Robots Hopped 43 | . 3 5 . . . 4 . . 5 . . . . . . . 1 . 4 . 1 6 3 11 Cave-ins Triggered 3 | . . . . . . . . . . . . . . 1 . . . . . . . . . 2 Teleports 2 | . . . . . . . . . . . . . . . . . . . . . . . . 2 Exploration Rate (%) 44 | 4 45 52 48 21 4 53 5 68 72 71 48 25 6 62 56 62 56 13 80 3 84 17 71 78 Regions Visited 24 Branch Regions 14 Pre-discovered Areas 5 | . . . 1 . . . . . . 1 . . . . . 3 . . . . . . . . Known Exits Taken 7 | . . . . . . 1 1 . . . 1 . 1 . . . . . . 1 . 1 1 . Unknown Exits Taken 14 | 1 1 1 1 1 1 . . 1 1 1 . 1 . 1 1 1 1 . . . . . . . Scrap Searched 12 | . . . . . . . . 2 2 . 1 . . 1 2 . 4 . . . . . . . Spaces Dug 56 | . . . . . . 3 . . . . . 15 1 15 1 . 2 5 . . . 5 3 6 Terrain Destroyed 56 | . . . . . . 3 . . . . . 15 1 15 1 . 2 5 . . . 5 3 6 Melee 53 | . . . . . . . . . . . . 15 1 15 1 . 2 5 . . . 5 3 6 Projectile 3 | . . . . . . 3 . . . . . . . . . . . . . . . . . . AOE . | . . . . . . . . . . . . . . . . . . . . . . . . . Terrain Rammed . | . . . . . . . . . . . . . . . . . . . . . . . . . Walls Destroyed . | . . . . . . . . . . . . . . . . . . . . . . . . . Machines Disabled . | . . . . . . . . . . . . . . . . . . . . . . . . . Actions | -11 -10 -10 -10 -9 -8 -8 -7 -7 -7 -7 -6 -6 -5 -5 -5 -5 -4 -4 -4 -4 -4 -3 -3 -3 --------- Run | Jun Mat Min Exi Min Mat Sto Fac Low Low Dat Pro Fac Fac Upp Upp Zhi Pro Fac Was Fac DSF Res Qua Sec Total 8320 | 64 296 313 139 38 45 292 155 387 379 78 240 762 236 656 444 168 517 385 77 87 147 580 686 1149 Wait 860 | . 36 13 . 6 13 2 2 16 34 . 32 95 117 113 60 . 124 87 2 . . 18 50 40 Move 7024 | 46 220 295 139 32 25 265 142 369 340 78 208 603 112 525 382 155 381 285 72 86 80 520 595 1069 Hop 39 | . 3 5 . . . 4 . . 5 . . . . . . . 1 . 2 . 1 6 3 9 Pick Up 53 | 7 8 . . . . 8 3 . . . . 7 3 1 . 2 2 1 . 1 . 2 5 3 Fast Attach 41 | 5 5 . . . 1 . . 1 . . . 6 . . 1 3 . 2 1 . . 1 10 5 Attach 33 | 1 2 . . . 5 2 1 . . . . 2 2 . . 2 . 2 . . . 6 1 7 Detach 6 | . 2 . . . . . . . . . . . . . . 1 . . . . . 2 1 . Swap 16 | . 1 . . . . 1 . . . . . 5 . . . 1 4 2 . . 1 . 1 . Drop 49 | . 11 . . . . 3 2 . . . . 11 1 1 . 4 2 . . . 1 . 11 2 Fire 27 | 5 8 . . . 1 7 5 1 . . . . . . . . . . . . . . . . Melee 72 | . . . . . . . . . . . . 15 1 16 1 . 3 6 . . . 9 9 12 Ram . | . . . . . . . . . . . . . . . . . . . . . . . . . Kick . | . . . . . . . . . . . . . . . . . . . . . . . . . Crush . | . . . . . . . . . . . . . . . . . . . . . . . . . Escape Stasis 100 | . . . . . . . . . . . . 18 . . . . . . . . 64 16 . 2 Rewire . | . . . . . . . . . . . . . . . . . . . . . . . . . Trap . | . . . . . . . . . . . . . . . . . . . . . . . . . Miscellaneous . | . . . . . . . . . . . . . . . . . . . . . . . . . Route ------- -11/Junkyard -10/Materials (discovered 2 exits: [*Mat] / [*Min]) -10/Mines (discovered 2 exits: [*Mat] / *Exi) -10/Exiles -9/Mines -8/Materials (discovered 2 exits: Fac / *Sto) -8/Storage -7/Factory (discovered 3 exits: *Fac / *Low x2) -7/Lower Caves -7/Lower Caves (discovered 2 exits: *Fac / *Dat) -7/Data Miner -6/Proximity Caves -6/Factory (discovered 2 exits: *Fac / Low) -5/Factory (discovered 2 exits: *Upp x2) -5/Upper Caves -5/Upper Caves (discovered 2 exits: *Fac / *Zhi) -5/Zhirov -4/Proximity Caves -4/Factory (discovered 3 exits: Upp x2 / Arm) -4/Waste -4/Factory (discovered 2 exits: *Upp / DSF) -4/DSF -3/Research (discovered 2 exits: *Res / *Qua) -3/Quarantine (discovered 2 exits: *Res / *Sec) -3/Section 7 History --------- Turn | Location | Event 12 | -11/Junkyard | Discovered new exit (range 16) 66 | -11/Junkyard | Entered Materials 191 | -10/Materials | Discovered new exit (range 13) 318 | -10/Materials | Build established: Mutant 357 | -10/Materials | Discovered new exit (range 6) 359 | -10/Materials | Entered Mines 446 | -10/Mines | Discovered new exit (range 15) 483 | -10/Mines | Assembled infested the area 484 | -10/Mines | Deemed a non-threat by the Exiles lab entrance 484 | -10/Mines | Discovered new exit (range 5) 485 | -10/Mines | Entered Exiles 494 | -10/Exiles | Met 8R-AWN 501 | -10/Exiles | Met EX-HEX 515 | -10/Exiles | Met EX-DEC 517 | -10/Exiles | Learned location of Zion (-6) 534 | -10/Exiles | Discovered new exit (range 10) 537 | -10/Exiles | Entered Mines 546 | -9/Mines | Learned location of 1 exit from Proximity Caves 546 | -9/Mines | Learned location of 1 exit from Materials 550 | -9/Mines | Discovered new exit (range 11) 555 | -9/Mines | Entered Materials 555 | -8/Materials | Evolved 4 slots: Propulsion x2, Utility x2 556 | -8/Materials | Identified exit to Factory 569 | -8/Materials | Discovered new exit (range 12) 585 | -8/Materials | Entered Storage 693 | -8/Storage | Discovered exit to Factory (range 16) 708 | -8/Storage | Entered Factory 708 | -7/Factory | Evolved 2 slots: Utility x2 712 | -7/Factory | Discovered new exit (range 19) 747 | -7/Factory | Identified exit to Lower Caves 756 | -7/Factory | Discovered new exit (range 9) 777 | -7/Factory | Entered Lower Caves 846 | -7/Lower Caves | Build established: Infiltrator-Sprinter 887 | -7/Lower Caves | Discovered new exit (range 9) 906 | -7/Lower Caves | Attracted the attention of an 0b10 checkpoint 906 | -7/Lower Caves | Entered another Lower Caves area 917 | -7/Lower Caves | Discovered new exit (range 10) 944 | -7/Lower Caves | Attracted the attention of an 0b10 checkpoint 966 | -7/Lower Caves | Learned Factory stockpile data 1032 | -7/Lower Caves | Encountered a Warlord checkpoint 1034 | -7/Lower Caves | Learned Factory garrison access intel 1040 | -7/Lower Caves | Discovered new exit (range 8) 1042 | -7/Lower Caves | Entered Data Miner 1042 | -7/Data Miner | Discovered new exit (range 6) 1047 | -7/Data Miner | Met Data Miner 1053 | -7/Data Miner | Learned location of Section 7 (-3) 1053 | -7/Data Miner | Acquired the access code to Warlord's prototype stash 1059 | -7/Data Miner | Received God Mode back door access code from Data Miner 1065 | -7/Data Miner | Entered Proximity Caves 1066 | -6/Proximity Caves | Identified exit to Factory 1080 | -6/Proximity Caves | Learned Factory emergency access door positions 1090 | -6/Proximity Caves | Attracted the attention of an 0b10 checkpoint 1091 | -6/Proximity Caves | Escorted by Enhanced Grunt 1103 | -6/Proximity Caves | Spotted B-75 Beast 1158 | -6/Proximity Caves | Entered Factory 1158 | -6/Factory | Evolved 2 slots: Power x1, Utility x1 1159 | -6/Factory | Identified exit to Lower Caves 1162 | -6/Factory | Loaded intel: 2 garrison access locations 1205 | -6/Factory | Fabricated K-01 Serf (x1) 1246 | -6/Factory | Repaired Imp. Light Armor Plating 1461 | -6/Factory | Discovered new exit (range 9) 1520 | -6/Factory | Entered another Factory area 1520 | -5/Factory | Evolved 2 slots: Propulsion x1, Utility x1 1521 | -5/Factory | Identified exit to Upper Caves 1657 | -5/Factory | Fabricated Imp. Phase Shifter (x1) 1675 | -5/Factory | Entered Upper Caves 1719 | -5/Upper Caves | Found Alien Artifact 1865 | -5/Upper Caves | Crushed by falling debris 1905 | -5/Upper Caves | Spotted B-75 Beast 1968 | -5/Upper Caves | Discovered new exit (range 11) 1975 | -5/Upper Caves | Entered another Upper Caves area 2042 | -5/Upper Caves | Discovered new exit (range 10) 2048 | -5/Upper Caves | Attracted the attention of an 0b10 checkpoint 2103 | -5/Upper Caves | Attracted the attention of an 0b10 outpost 2107 | -5/Upper Caves | Spotted B-75 Beast 2137 | -5/Upper Caves | Discovered new exit (range 8) 2139 | -5/Upper Caves | Entered Zhirov 2139 | -5/Zhirov | Discovered new exit (range 3) 2144 | -5/Zhirov | Met Zhirov 2149 | -5/Zhirov | Learned location of Quarantine (-3) 2149 | -5/Zhirov | Learned location of Testing (-2) 2149 | -5/Zhirov | Learned location of Command (-1) 2154 | -5/Zhirov | Zhirov requested help retrieving the SGEMP Prototype 2178 | -5/Zhirov | Found Alien Artifact 2184 | -5/Zhirov | Found Alien Artifact 2184 | -5/Zhirov | Identified Integrated Reactor 2184 | -5/Zhirov | Installed Integrated Reactor, increased core energy generation (+10) 2197 | -5/Zhirov | Entered Proximity Caves 2427 | -4/Proximity Caves | Build established: Hacker-Sprinter 2444 | -4/Proximity Caves | Discovered new exit (range 5) 2445 | -4/Proximity Caves | Entered Factory 2445 | -4/Factory | Evolved 2 slots: Propulsion x1, Utility x1 2446 | -4/Factory | Identified exit to Armory 2460 | -4/Factory | Identified exit to Upper Caves 2479 | -4/Factory | Repaired Xenon Bombardment Thruster 2553 | -4/Factory | Incoming investigation squad redirected 2600 | -4/Factory | Fabricated Cld. Cesium-ion Thruster (x1) 2633 | -4/Factory | Imp. Hacking Suite fried by hacking feedback 2638 | -4/Factory | Sucked down chute 2638 | -4/Factory | Entered Waste 2647 | -4/Waste | Spotted C-40 Crusher 2650 | -4/Waste | Spotted C-40 Crusher 2652 | -4/Waste | Spotted C-40 Crusher 2654 | -4/Waste | Spotted C-40 Crusher 2655 | -4/Waste | Crushed by Compactor (1 part destroyed, 1 dropped) 2658 | -4/Waste | Spotted C-40 Crusher 2658 | -4/Waste | Discovered new exit (range 10) 2658 | -4/Waste | Spotted C-40 Crusher 2663 | -4/Waste | Entered Factory 2687 | -4/Factory | Identified exit to DSF 2688 | -4/Factory | Discovered exit to Upper Caves (range 9) 2689 | -4/Factory | Entered DSF 2709 | -4/DSF | Additional patrols routed to DSF 2728 | -4/DSF | Discovered new exit (range 18) 2779 | -4/DSF | Entered Research 2779 | -3/Research | Evolved 2 slots: Utility x2 2810 | -3/Research | Discovered new exit (range 4) 2813 | -3/Research | Identified exit to Research 2829 | -3/Research | Spotted B-86 Titan 2982 | -3/Research | Spotted B-86 Titan 3003 | -3/Research | Discovered new exit (range 7) 3007 | -3/Research | Identified exit to Quarantine 3007 | -3/Research | Entered Quarantine 3027 | -3/Quarantine | Found Alien Reactor 3027 | -3/Quarantine | Identified Matter Drive 3093 | -3/Quarantine | Found Alien Artifact 3093 | -3/Quarantine | Identified Subatomic Replicator 3112 | -3/Quarantine | Found Alien Artifact 3112 | -3/Quarantine | Identified Terrabomb 3112 | -3/Quarantine | Used Terrabomb 3121 | -3/Quarantine | Found Terrabomb 3121 | -3/Quarantine | Used Terrabomb 3144 | -3/Quarantine | Build established: Hacker-Scout 3145 | -3/Quarantine | Cryocooling Duct disabled 3146 | -3/Quarantine | Cryocooling Duct disabled 3160 | -3/Quarantine | Ambient heat levels rising (+20) 3160 | -3/Quarantine | Non-combat units ordered to evacuate 3161 | -3/Quarantine | Ambient heat levels rising (+20) 3161 | -3/Quarantine | Combat units ordered to evacuate 3186 | -3/Quarantine | Discovered exit to Research (range 7) 3249 | -3/Quarantine | Spotted Fortress 3261 | -3/Quarantine | Quarantine Guard activated 3285 | -3/Quarantine | Discovered new exit (range 6) 3286 | -3/Quarantine | Identified exit to Section 7 3286 | -3/Quarantine | Entered Section 7 3356 | -3/Section 7 | Spotted B-86 Titan 3379 | -3/Section 7 | Incoming investigation squad redirected 3419 | -3/Section 7 | Spotted Alpha 7 3429 | -3/Section 7 | Spotted Executioner 3431 | -3/Section 7 | Spotted Executioner 3431 | -3/Section 7 | Identified Transdimensional Reconstructor 3431 | -3/Section 7 | Warped through subspace 3435 | -3/Section 7 | Found Terrabomb 3436 | -3/Section 7 | Found Terrabomb 3440 | -3/Section 7 | Found Alien Artifact 3440 | -3/Section 7 | Identified Hpw. Transdimensional Reconstructor 3440 | -3/Section 7 | Warped through subspace 3462 | -3/Section 7 | Lost 3 parts (1p1n1u) 3468 | -3/Section 7 | Found Matter Drive 3476 | -3/Section 7 | Spotted Striker 3476 | -3/Section 7 | Spotted Striker 3479 | -3/Section 7 | Spotted Executioner 3479 | -3/Section 7 | Spotted Executioner 3494 | -3/Section 7 | Spotted B-99 Colossus 3509 | -3/Section 7 | Found Alien Artifact 3509 | -3/Section 7 | Identified LRC Matter Compressor 3509 | -3/Section 7 | Installed LRC Matter Compressor, increased matter storage capacity (+125) 3553 | -3/Section 7 | Used Terrabomb 3553 | -3/Section 7 | Spotted Striker 3553 | -3/Section 7 | Spotted Striker 3570 | -3/Section 7 | Identified Dimensional Node Initializer 3570 | -3/Section 7 | Initialized slip node 3577 | -3/Section 7 | Crushed by falling debris 3577 | -3/Section 7 | Crushed by falling debris 3578 | -3/Section 7 | System corruption reached 10% 3601 | -3/Section 7 | Spotted Alpha 7 3603 | -3/Section 7 | Core integrity fell below 50% 3611 | -3/Section 7 | Used Terrabomb 3620 | -3/Section 7 | Core integrity fell below 20% 3656 | -3/Section 7 | Destroyed by P-80 Master with Gamma Rifle Last Messages --------------- 03611_ Penetrated by Slug. 03612_ Imp. Diametric Drive destroyed. 03612_ Penetrated by Slug. 03612_ Power Maul destroyed. 03612_ Dropped Sml. Storage Unit. 03614_ Slug penetrates Door. 03615_ Slug penetrates H-77 Assassin. 03615_ Penetrated by Slug. 03618_ Acquired Impulse Thruster Array. 03618_ Penetrated by Slug. 03618_ Imp. Melee Analysis Suite destroyed. 03618_ Critical hit (Burn: +50). 03619_ Penetrated by Slug. 03624_ Acquired Impulse Thruster. 03628_ Penetrated by Slug. 03629_ Imp. Signal Interpreter destroyed. 03631_ System corrupted: Matter fused (-6). 03634_ Slug penetrates Quantum Generator. 03634_ Slug penetrates Wall. 03648_ System corrupted: Matter fused (-9). Map ----- +----------------------------------------------------+ | | | | | | | | | | | | | | | | | | | | | | | | | | | | | | | ???????????????????????########??????????????????? | | ????????????????###############??????????????????? | | ????????????????# ##?????????????????? | | ????????????????# ##?????????????????? | | ????????????????# g hg ##?????????????????? | | ######??????????# """ """ """g##########????????## | | ######?????????## """ """ """ ##########?????### # | | """"##?????????## """ """ """ # ##?##### # # | | "S""#######????## """ """ """ g #### | | " ""#######????## """ """ """ # ## | | ##????## """ """@""" h | | ##?##### """ """p""" # # | | ||| ######## # """T""" | | || ###################### """ """ | | || # ^ * | | / """"""" | | # """ """ """"""" | | # """ """ """"""" | | # """ """ ######+### | | # =## | | + ## """"" + | | ######## ## """"" || | | #+############### ## """"" || | | # ############### ## + | | | # ############### ######## | | | | ????? | | ???? + ! | | ??? | | #####################+#?????? | | ############ ??????? ! | | ##???????????????????????? + | | ##????????????????????????# | | ##????????????????????????## | | """ ##????????????????????????## | +----------------------------------------------------+ Best States ------------- Heat Dissipation 46 Energy Generation 35 Energy Capacity 340 Matter Stores 300 Matter Capacity 425 Sight Range 18 Robot Scan Range 15 Terrain Scan Density 10 ECM Strength 1 Additional Mass Support 9 Armor Coverage 150 Utility Shielding 66 Evasion (%) 75 Melee Accuracy 11 Offensive Hacking 37 Item Schematics ----------------- Combat Drone Bay | -7/Data Miner | Free Lgt. Regenerative Plating | -7/Data Miner | Free Cld. Cesium-ion Thruster | -7/Data Miner | Free Thermal Defense Suite | -7/Data Miner | Free Force Rifle | -7/Data Miner | Free Hvy. Treads | -7/Data Miner | Free Imp. Coolant Injector | -7/Data Miner | Free Lrn. Proton Cannon | -7/Data Miner | Free Adv. Terrain Scanner | -7/Data Miner | Free Imp. Launcher Guidance Computer | -7/Data Miner | Free Neutrino Core | -7/Data Miner | Free Assault Drone Bay | -5/Zhirov | Free Exp. Heat Sink | -5/Zhirov | Free Exp. Optical Array | -5/Zhirov | Free Imp. Arc Thrower | -5/Zhirov | Free Robot Schematics ------------------ B-48 Gladiator | -7/Data Miner | Free A-15 Conveyor | -7/Data Miner | Free W-25 Informer | -7/Data Miner | Free G-50 Soldier | -7/Data Miner | Free Fabricated ------------ K-01 Serf | x1 | -6/Factory | Preloaded Imp. Phase Shifter | x1 | -5/Factory | Preloaded Cld. Cesium-ion Thruster | x1 | -4/Factory Alien Tech Used ----------------- Integrated Reactor Matter Drive Subatomic Replicator Terrabomb Transdimensional Reconstructor High-powered Transdimensional Reconstructor LRC Matter Compressor Dimensional Node Initializer Achievements -------------- None Challenges ------------ None Game ------ Seed DirtyGrapheneShotgun Manual? 0 Play Time 02:20:09 Cumulative 158.9 hours Start 2023.06.12 @ 21:03:44 End 2023.06.13 @ 16:34:07 Sessions 3 Manual Loads 0 Difficulty Rogue Special Mode None Game No. 102 Rogue 83 Adventurer 16 Explorer 3 Win Type - Total 5 Types 4/0/1/0/0/0/0/0/0 Lore% 57 Gallery% 60 Achievement% 51 Wizard Run 0 Options --------- ASCII 1 Keyboard 1 Movement Vi Keybinds 0 Fullscreen 0 Font 16/Terminus Map View 76x50 Tactical HUD 1 Map Filters NONE Filters NONE Steam X RUN: 0424a39b-f16e-4a15-b79b-d47f8dd7c8bb